fUST/lending_fUST_20240610
["ID","MTS","AMOUNT","RATE_DAILY","PERIOD"]
[328947047,1718025045005,-227.97647337,0.00020719,2]
[328947048,1718025045015,-500.0,0.00020719,2]
[328947049,1718025045025,-500.0,0.00020719,2]
[328947050,1718025045035,-1223.09,0.00020987,2]
[328947051,1718025045045,-1871.62,0.00020987,2]
[328947052,1718025045054,-1313.82,0.00020987,2]
[328947053,1718025045064,-521.35,0.00020987,2]
[328947054,1718025045073,-500.0,0.00020987,2]
[328947055,1718025045084,-500.0,0.00020987,2]
[328947056,1718025045096,-867.75,0.00020989,2]
[328947057,1718025045106,-1600.43,0.00020989,2]
[328947058,1718025045115,-917.7,0.00020989,2]
[328947059,1718025045125,-712.57,0.00020989,2]
[328947060,1718025045135,-500.0,0.00020989,2]
[328947061,1718025045145,-914.39,0.00020989,2]
[328947062,1718025045155,-500.0,0.00020989,2]
[328947063,1718025045165,-500.0,0.00020989,2]
[328947064,1718025045175,-500.0,0.00020989,2]
[328947065,1718025045185,-559.18,0.00020989,2]
[328947066,1718025045195,-771.31,0.00020989,2]
[328947067,1718025045205,-1360.27,0.00020989,2]
[328947068,1718025045215,-2043.67,0.00020989,2]
[328947069,1718025045225,-962.4,0.00020989,2]
[328947070,1718025045235,-500.0,0.00020989,2]
[328947071,1718025045246,-500.0,0.00020989,2]
[328947072,1718025045259,-2294.87,0.00020989,2]
[328947073,1718025045271,-722.1,0.00020989,2]
[328947074,1718025045283,-500.0,0.00020989,2]
[328947075,1718025045293,-500.0,0.00020991,2]
[328947076,1718025045303,-500.0,0.00020991,2]
[328947077,1718025045315,-520.41,0.00020991,2]
[328947078,1718025045325,-500.0,0.00020991,2]
[328947079,1718025045335,-500.0,0.00020991,2]
[328947080,1718025045348,-500.0,0.00020991,2]
[328947081,1718025045358,-556.01,0.00020991,2]
[328947082,1718025045369,-500.0,0.00020991,2]
[328947083,1718025045379,-500.0,0.00020991,2]
[328947084,1718025045389,-500.0,0.00020991,2]
[328947085,1718025045399,-542.45,0.00020991,2]
[328947086,1718025045409,-500.0,0.00020991,2]
[328947087,1718025045419,-937.86,0.00020991,2]
[328947088,1718025045429,-500.0,0.00020991,2]
[328947089,1718025045439,-500.0,0.00020991,2]
[328947090,1718025045450,-652.98,0.00020991,2]
[328947091,1718025045460,-826.99,0.00020991,2]
[328947092,1718025045470,-500.0,0.00020991,2]
[328947093,1718025045481,-500.0,0.00020991,2]
[328947094,1718025045491,-1276.79,0.00020991,2]
[328947095,1718025045501,-596.13,0.00020991,2]
[328947096,1718025045511,-500.0,0.00020991,2]
[328947097,1718025045521,-500.0,0.00020991,2]
[328947098,1718025045531,-500.0,0.00020991,2]
[328947099,1718025045541,-500.0,0.00020991,2]
[328947100,1718025045552,-205.46331933,0.00020991,2]
[328947101,1718025045562,-500.0,0.00020991,2]
[328947102,1718025045572,-500.0,0.00020991,2]
[328947103,1718025045582,-500.0,0.00020991,2]
[328947104,1718025045594,-500.0,0.00020991,2]
[328947105,1718025045604,-525.12138007,0.00020991,2]
[328947106,1718025045614,-500.0,0.00020991,2]
[328947108,1718025045626,-1256.86,0.00020991,2]
[328947109,1718025045643,-500.0,0.00020991,2]
[328947110,1718025045653,-500.0,0.00020991,2]
[328947111,1718025045663,-1506.86,0.00020991,2]
[328947112,1718025045673,-500.0,0.00020991,2]
[328947113,1718025045684,-500.0,0.00020991,2]
[328947114,1718025045694,-500.0,0.00020991,2]
[328947115,1718025045703,-1081.24,0.00020991,2]
[328947116,1718025045713,-500.0,0.00020991,2]
[328947117,1718025045723,-500.0,0.00020991,2]
[328947118,1718025045732,-778.16,0.00020991,2]
[328947119,1718025045743,-861.76,0.00020991,2]
[328947120,1718025045753,-500.0,0.00020991,2]
[328947121,1718025045764,-578.34,0.00020991,2]
[328947122,1718025045775,-500.0,0.00020991,2]
[328947123,1718025045787,-500.0,0.00020991,2]
[328947124,1718025045797,-500.0,0.00020991,2]
[328947125,1718025045808,-500.0,0.00020991,2]
[328947126,1718025045818,-500.0,0.00020991,2]
[328947127,1718025045829,-1906.18,0.00020991,2]
[328947128,1718025045841,-538.62,0.00020991,2]
[328947129,1718025045851,-154.27709157,0.00020991,2]
[328947130,1718025045861,-500.0,0.00020991,2]
[328947131,1718025045872,-500.0,0.00020991,2]
[328947132,1718025045883,-500.0,0.00020991,2]
[328947133,1718025045893,-588.47,0.00020991,2]
[328947134,1718025045904,-500.0,0.00020991,2]
[328947135,1718025045914,-500.0,0.00020991,2]
[328947136,1718025045924,-500.0,0.00020991,2]
[328947139,1718025046022,-1419.7,0.00020991,2]
[328947140,1718025046033,-2539.43,0.00020991,2]
[328947141,1718025046043,-500.0,0.00020991,2]
[328947142,1718025046053,-519.59,0.00020991,2]
[328947143,1718025046063,-500.0,0.00020991,2]
[328947144,1718025046073,-500.0,0.00020992,2]
[328947146,1718025046082,-517.07,0.00020992,2]
[328947147,1718025046093,-500.0,0.00020992,2]
[328947149,1718025046103,-647.77,0.00020992,2]
[328947150,1718025046112,-500.0,0.00020992,2]
[328947151,1718025046122,-500.0,0.00020992,2]
[328947152,1718025046133,-653.31,0.00020992,2]
[328947153,1718025046143,-602.64,0.00020992,2]
[328947154,1718025046153,-500.0,0.00020992,2]
[328947155,1718025046163,-500.0,0.00020993,2]
[328947156,1718025046173,-500.0,0.00020993,2]
[328947157,1718025046182,-500.0,0.00020993,2]
[328947158,1718025046192,-3979.41598053,0.00021,2]
[328947159,1718025046202,-471.11084475,0.00021,2]
[328947160,1718025046212,-393.98121283,0.00021,2]
[328947161,1718025046222,-906.3,0.00021255,3]
[328947162,1718025046232,-453.14,0.00021255,3]
[328947163,1718025046242,-1223.09,0.00021261,2]
[328947164,1718025046252,-1871.62,0.00021261,2]
[328947165,1718025046262,-1313.82,0.00021261,2]
[328947166,1718025046275,-521.35,0.00021261,2]
[328947167,1718025046285,-500.0,0.00021261,2]
[328947168,1718025046296,-500.0,0.00021261,2]
[328947169,1718025046307,-867.75,0.00021263,2]
[328947170,1718025046316,-1600.43,0.00021263,2]
[328947171,1718025046326,-917.7,0.00021263,2]
[328947172,1718025046337,-712.57,0.00021263,2]
[328947173,1718025046347,-500.0,0.00021263,2]
[328947174,1718025046360,-914.39,0.00021263,2]
[328947175,1718025046369,-500.0,0.00021263,2]
[328947176,1718025046379,-500.0,0.00021263,2]
[328947177,1718025046389,-500.0,0.00021263,2]
[328947178,1718025046398,-559.18,0.00021263,2]
[328947179,1718025046408,-771.31,0.00021263,2]
[328947180,1718025046417,-1360.27,0.00021263,2]
[328947181,1718025046427,-2043.67,0.00021263,2]
[328947183,1718025046437,-962.4,0.00021263,2]
[328947184,1718025046447,-500.0,0.00021263,2]
[328947186,1718025046457,-500.0,0.00021263,2]
[328947188,1718025046466,-2294.87,0.00021263,2]
[328947189,1718025046476,-722.1,0.00021263,2]
[328947190,1718025046487,-500.0,0.00021263,2]
[328947191,1718025046497,-500.0,0.00021265,2]
[328947192,1718025046507,-500.0,0.00021265,2]
[328947193,1718025046517,-520.41,0.00021265,2]
[328947194,1718025046527,-500.0,0.00021265,2]
[328947195,1718025046537,-500.0,0.00021265,2]
[328947196,1718025046547,-500.0,0.00021265,2]
[328947197,1718025046556,-556.01,0.00021265,2]
[328947198,1718025046566,-500.0,0.00021265,2]
[328947199,1718025046576,-500.0,0.00021265,2]
[328947200,1718025046586,-500.0,0.00021265,2]
[328947201,1718025046596,-542.45,0.00021265,2]
[328947202,1718025046606,-500.0,0.00021265,2]
[328947203,1718025046616,-937.86,0.00021265,2]
[328947204,1718025046626,-500.0,0.00021265,2]
[328947205,1718025046635,-524.71439149,0.00021265,2]
[328947206,1718025046646,-652.98,0.00021265,2]
[328947207,1718025046655,-826.99,0.00021265,2]
[328947208,1718025046665,-500.0,0.00021265,2]
[328947209,1718025046675,-500.0,0.00021265,2]
[328947210,1718025046685,-1276.79,0.00021265,2]
[328947211,1718025046695,-596.13,0.00021265,2]
[328947212,1718025046705,-500.0,0.00021265,2]
[328947213,1718025046715,-500.0,0.00021265,2]
[328947214,1718025046725,-500.0,0.00021265,2]
[328947215,1718025046735,-500.0,0.00021265,2]
[328947216,1718025046745,-643.67851361,0.00021265,2]
[328947217,1718025046755,-500.0,0.00021265,2]
[328947218,1718025046765,-500.0,0.00021265,2]
[328947219,1718025046775,-500.0,0.00021265,2]
[328947221,1718025046785,-238.13000048,0.00021265,2]
[328947222,1718025046794,-1256.86,0.00021265,2]
[328947224,1718025046804,-500.0,0.00021265,2]
[328947226,1718025046813,-500.0,0.00021265,2]
[328947228,1718025046823,-1506.86,0.00021265,2]
[328947229,1718025046833,-500.0,0.00021265,2]
[328947231,1718025046844,-500.0,0.00021265,2]
[328947233,1718025046854,-500.0,0.00021265,2]
[328947235,1718025046864,-1081.24,0.00021265,2]
[328947237,1718025046874,-500.0,0.00021265,2]
[328947239,1718025046883,-500.0,0.00021265,2]
[328947240,1718025046893,-778.16,0.00021265,2]
[328947242,1718025046903,-861.76,0.00021265,2]
[328947243,1718025046913,-500.0,0.00021265,2]
[328947244,1718025046923,-578.34,0.00021265,2]
[328947245,1718025046933,-500.0,0.00021265,2]
[328947246,1718025046943,-500.0,0.00021265,2]
[328947247,1718025046953,-500.0,0.00021265,2]
[328947248,1718025046964,-500.0,0.00021265,2]
[328947249,1718025046974,-500.0,0.00021265,2]
[328947250,1718025046984,-1906.18,0.00021265,2]
[328947251,1718025046993,-538.62,0.00021265,2]
[328947252,1718025047003,-500.0,0.00021265,2]
[328947253,1718025047013,-500.0,0.00021265,2]
[328947254,1718025047023,-500.0,0.00021265,2]
[328947255,1718025047033,-588.47,0.00021265,2]
[328947256,1718025047043,-500.0,0.00021265,2]
[328947258,1718025047053,-500.0,0.00021265,2]
[328947260,1718025047064,-500.0,0.00021265,2]
[328947262,1718025047074,-1419.7,0.00021265,2]
[328947263,1718025047084,-2539.43,0.00021265,2]
[328947265,1718025047094,-500.0,0.00021265,2]
[328947266,1718025047104,-519.59,0.00021265,2]
[328947267,1718025047115,-500.0,0.00021265,2]
[328947268,1718025047125,-500.0,0.00021266,2]
[328947269,1718025047135,-517.07,0.00021266,2]
[328947270,1718025047145,-500.0,0.00021266,2]
[328947271,1718025047155,-647.77,0.00021266,2]
[328947272,1718025047165,-500.0,0.00021266,2]
[328947273,1718025047174,-500.0,0.00021266,2]
[328947274,1718025047184,-653.31,0.00021266,2]
[328947275,1718025047194,-602.64,0.00021266,2]
[328947276,1718025047204,-500.0,0.00021266,2]
[328947277,1718025047213,-500.0,0.00021267,2]
[328947278,1718025047223,-500.0,0.00021267,2]
[328947279,1718025047233,-500.0,0.00021267,2]
[328947280,1718025047242,-1223.09,0.00021535,2]
[328947281,1718025047252,-1871.62,0.00021535,2]
[328947282,1718025047262,-1313.82,0.00021535,2]
[328947283,1718025047274,-521.35,0.00021535,2]
[328947284,1718025047284,-500.0,0.00021535,2]
[328947285,1718025047293,-500.0,0.00021535,2]
[328947286,1718025047303,-867.75,0.00021537,2]
[328947287,1718025047314,-1600.43,0.00021537,2]
[328947288,1718025047324,-917.7,0.00021537,2]
[328947289,1718025047333,-712.57,0.00021537,2]
[328947291,1718025047345,-500.0,0.00021537,2]
[328947292,1718025047355,-914.39,0.00021537,2]
[328947293,1718025047365,-500.0,0.00021537,2]
[328947294,1718025047375,-500.0,0.00021537,2]
[328947296,1718025047385,-500.0,0.00021537,2]
[328947297,1718025047395,-559.18,0.00021537,2]
[328947298,1718025047404,-771.31,0.00021537,2]
[328947299,1718025047414,-1360.27,0.00021537,2]
[328947300,1718025047424,-2043.67,0.00021537,2]
[328947301,1718025047433,-962.4,0.00021537,2]
[328947302,1718025047445,-500.0,0.00021537,2]
[328947303,1718025047458,-500.0,0.00021537,2]
[328947304,1718025047468,-2294.87,0.00021537,2]
[328947305,1718025047477,-722.1,0.00021537,2]
[328947306,1718025047487,-500.0,0.00021537,2]
[328947307,1718025047497,-500.0,0.00021539,2]
[328947308,1718025047506,-427.16214449,0.00021539,2]
[328947309,1718025047516,-520.41,0.00021539,2]
[328947310,1718025047528,-500.0,0.00021539,2]
[328947311,1718025047537,-500.0,0.00021539,2]
[328947312,1718025047547,-500.0,0.00021539,2]
[328947313,1718025047557,-556.01,0.00021539,2]
[328947314,1718025047567,-500.0,0.00021539,2]
[328947315,1718025047577,-500.0,0.00021539,2]
[328947316,1718025047588,-438.71743889,0.00021539,2]
[328947317,1718025047598,-542.45,0.00021539,2]
[328947318,1718025047607,-500.0,0.00021539,2]
[328947319,1718025047617,-937.86,0.00021539,2]
[328947320,1718025047627,-500.0,0.00021539,2]
[328947321,1718025047636,-652.98,0.00021539,2]
[328947322,1718025047646,-826.99,0.00021539,2]
[328947323,1718025047655,-500.0,0.00021539,2]
[328947324,1718025047664,-500.0,0.00021539,2]
[328947325,1718025047673,-1276.79,0.00021539,2]
[328947326,1718025047683,-596.13,0.00021539,2]
[328947327,1718025047693,-500.0,0.00021539,2]
[328947328,1718025047702,-500.0,0.00021539,2]
[328947329,1718025047712,-500.0,0.00021539,2]
[328947330,1718025047721,-500.0,0.00021539,2]
[328947331,1718025047730,-307.45743825,0.00021539,2]
[328947332,1718025047739,-500.0,0.00021539,2]
[328947333,1718025047748,-500.0,0.00021539,2]
[328947334,1718025047758,-1256.86,0.00021539,2]
[328947335,1718025047767,-500.0,0.00021539,2]
[328947336,1718025047776,-500.0,0.00021539,2]
[328947337,1718025047786,-1506.86,0.00021539,2]
[328947338,1718025047796,-500.0,0.00021539,2]
[328947339,1718025047806,-500.0,0.00021539,2]
[328947340,1718025047816,-500.0,0.00021539,2]
[328947341,1718025047826,-1081.24,0.00021539,2]
[328947342,1718025047835,-500.0,0.00021539,2]
[328947343,1718025047847,-500.0,0.00021539,2]
[328947344,1718025047856,-778.16,0.00021539,2]
[328947345,1718025047865,-861.76,0.00021539,2]
[328947346,1718025047875,-500.0,0.00021539,2]
[328947347,1718025047885,-578.34,0.00021539,2]
[328947348,1718025047895,-500.0,0.00021539,2]
[328947349,1718025047904,-500.0,0.00021539,2]
[328947350,1718025047914,-500.0,0.00021539,2]
[328947351,1718025047924,-500.0,0.00021539,2]
[328947352,1718025047934,-500.0,0.00021539,2]
[328947353,1718025047944,-1906.18,0.00021539,2]
[328947354,1718025047953,-538.62,0.00021539,2]
[328947355,1718025047963,-500.0,0.00021539,2]
[328947356,1718025047974,-500.0,0.00021539,2]
[328947357,1718025047983,-500.0,0.00021539,2]
[328947358,1718025047993,-588.47,0.00021539,2]
[328947359,1718025048003,-500.0,0.00021539,2]
[328947360,1718025048013,-500.0,0.00021539,2]
[328947361,1718025048022,-500.0,0.00021539,2]
[328947362,1718025048033,-1419.7,0.00021539,2]
[328947363,1718025048116,-2539.43,0.00021539,2]
[328947364,1718025048126,-500.0,0.00021539,2]
[328947365,1718025048136,-519.59,0.00021539,2]
[328947366,1718025048146,-500.0,0.00021539,2]
[328947367,1718025048156,-500.0,0.0002154,2]
[328947368,1718025048167,-517.07,0.0002154,2]
[328947369,1718025048177,-500.0,0.0002154,2]
[328947370,1718025048186,-647.77,0.0002154,2]
[328947371,1718025048196,-500.0,0.0002154,2]
[328947372,1718025048206,-500.0,0.0002154,2]
[328947373,1718025048216,-653.31,0.0002154,2]
[328947374,1718025048226,-602.64,0.0002154,2]
[328947375,1718025048235,-500.0,0.0002154,2]
[328947376,1718025048245,-443.05444313,0.00021541,2]
[328947377,1718025048255,-500.0,0.00021541,2]
[328947378,1718025048265,-500.0,0.00021541,2]
[328947379,1718025048279,-11760.28968874,0.0002158,2]
[328947380,1718025048289,-420.0,0.00021659,2]
[328947381,1718025048299,-1223.09,0.00021809,2]
[328947382,1718025048310,-1871.62,0.00021809,2]
[328947383,1718025048319,-1313.82,0.00021809,2]
[328947384,1718025048329,-521.35,0.00021809,2]
[328947385,1718025048339,-500.0,0.00021809,2]
[328947386,1718025048350,-500.0,0.00021809,2]
[328947387,1718025048360,-867.75,0.00021811,2]
[328947388,1718025048370,-1600.43,0.00021811,2]
[328947389,1718025048380,-917.7,0.00021811,2]
[328947390,1718025048390,-712.57,0.00021811,2]
[328947391,1718025048399,-500.0,0.00021811,2]
[328947392,1718025048409,-914.39,0.00021811,2]
[328947393,1718025048419,-500.0,0.00021811,2]
[328947394,1718025048429,-500.0,0.00021811,2]
[328947395,1718025048438,-500.0,0.00021811,2]
[328947396,1718025048448,-559.18,0.00021811,2]
[328947397,1718025048458,-771.31,0.00021811,2]
[328947398,1718025048468,-1360.27,0.00021811,2]
[328947399,1718025048478,-2043.67,0.00021811,2]
[328947400,1718025048487,-962.4,0.00021811,2]
[328947401,1718025048497,-500.0,0.00021811,2]
[328947402,1718025048507,-500.0,0.00021811,2]
[328947403,1718025048517,-2294.87,0.00021811,2]
[328947404,1718025048527,-722.1,0.00021811,2]
[328947405,1718025048537,-500.0,0.00021811,2]
[328947406,1718025048547,-500.0,0.00021813,2]
[328947407,1718025048557,-520.41,0.00021813,2]
[328947408,1718025048567,-500.0,0.00021813,2]
[328947409,1718025048576,-321.61184273,0.00021813,2]
[328947410,1718025048587,-500.0,0.00021813,2]
[328947411,1718025048597,-556.01,0.00021813,2]
[328947412,1718025048607,-500.0,0.00021813,2]
[328947413,1718025048616,-500.0,0.00021813,2]
[328947414,1718025048628,-542.45,0.00021813,2]
[328947415,1718025048638,-500.0,0.00021813,2]
[328947416,1718025048647,-937.86,0.00021813,2]
[328947417,1718025048657,-500.0,0.00021813,2]
[328947418,1718025048666,-652.98,0.00021813,2]
[328947419,1718025048676,-826.99,0.00021813,2]
[328947420,1718025048686,-500.0,0.00021813,2]
[328947421,1718025048695,-500.0,0.00021813,2]
[328947422,1718025048705,-1276.79,0.00021813,2]
[328947423,1718025048715,-596.13,0.00021813,2]
[328947424,1718025048725,-500.0,0.00021813,2]
[328947425,1718025048734,-500.0,0.00021813,2]
[328947426,1718025048743,-644.18683418,0.00021813,2]
[328947427,1718025048753,-500.0,0.00021813,2]
[328947428,1718025048762,-500.0,0.00021813,2]
[328947429,1718025048772,-207.19361884,0.00021813,2]
[328947430,1718025048782,-1256.86,0.00021813,2]
[328947431,1718025048791,-500.0,0.00021813,2]
[328947432,1718025048801,-500.0,0.00021813,2]
[328947433,1718025048811,-1506.86,0.00021813,2]
[328947434,1718025048820,-500.0,0.00021813,2]
[328947435,1718025048830,-500.0,0.00021813,2]
[328947436,1718025048841,-500.0,0.00021813,2]
[328947437,1718025048851,-1081.24,0.00021813,2]
[328947438,1718025048860,-500.0,0.00021813,2]
[328947439,1718025048871,-500.0,0.00021813,2]
[328947440,1718025048881,-778.16,0.00021813,2]
[328947441,1718025048891,-861.76,0.00021813,2]
[328947442,1718025048901,-500.0,0.00021813,2]
[328947443,1718025048911,-578.34,0.00021813,2]
[328947444,1718025048921,-500.0,0.00021813,2]
[328947445,1718025048931,-500.0,0.00021813,2]
[328947446,1718025048941,-500.0,0.00021813,2]
[328947447,1718025048950,-500.0,0.00021813,2]
[328947448,1718025048960,-500.0,0.00021813,2]
[328947449,1718025048970,-1906.18,0.00021813,2]
[328947450,1718025048979,-538.62,0.00021813,2]
[328947451,1718025048989,-500.0,0.00021813,2]
[328947452,1718025048999,-500.0,0.00021813,2]
[328947453,1718025049009,-500.0,0.00021813,2]
[328947454,1718025049018,-500.0,0.00021813,2]
[328947455,1718025049027,-588.47,0.00021813,2]
[328947456,1718025049037,-500.0,0.00021813,2]
[328947457,1718025049047,-500.0,0.00021813,2]
[328947458,1718025049057,-1419.7,0.00021813,2]
[328947459,1718025049067,-2539.43,0.00021813,2]
[328947460,1718025049077,-500.0,0.00021813,2]
[328947461,1718025049087,-519.59,0.00021813,2]
[328947462,1718025049097,-500.0,0.00021813,2]
[328947463,1718025049107,-265.4586373,0.00021814,2]
[328947464,1718025049117,-517.07,0.00021814,2]
[328947465,1718025049127,-500.0,0.00021814,2]
[328947466,1718025049136,-647.77,0.00021814,2]
[328947467,1718025049146,-500.0,0.00021814,2]
[328947468,1718025049155,-500.0,0.00021814,2]
[328947469,1718025049165,-653.31,0.00021814,2]
[328947470,1718025049174,-602.64,0.00021814,2]
[328947471,1718025049184,-500.0,0.00021814,2]
[328947472,1718025049193,-500.0,0.00021815,2]
[328947473,1718025049203,-500.0,0.00021815,2]
[328947474,1718025049213,-499.0,0.00021826,2]
[328947475,1718025049222,-151.643,0.00021826,2]
[328947476,1718025049232,-420.0,0.00021879,2]
[328947477,1718025049242,-200.0,0.00021917,2]
[328947478,1718025049252,-200.0,0.00021917,2]
[328947479,1718025049262,-200.0,0.00021917,2]
[328947480,1718025049276,-200.0,0.00021917,2]
[328947481,1718025049287,-200.0,0.00021917,2]
[328947482,1718025049297,-200.0,0.00021917,2]
[328947483,1718025049307,-200.0,0.00021917,2]
[328947484,1718025049316,-200.0,0.00021917,2]
[328947485,1718025049326,-166.666666,0.00021918,2]
[328947486,1718025049336,-53305.5923008,0.00021918,2]
[328947487,1718025049347,-620.0017948,0.00021985,2]
[328947488,1718025049357,-60208.38065482,0.00022,2]
[328947489,1718025049366,-155.01395126,0.00022,2]
[328947490,1718025049376,-12839.58760771,0.00022,2]
[328947491,1718025049386,-1223.09,0.00022083,2]
[328947492,1718025049396,-1871.62,0.00022083,2]
[328947493,1718025049406,-1313.82,0.00022083,2]
[328947494,1718025049416,-521.35,0.00022083,2]
[328947495,1718025049426,-500.0,0.00022083,2]
[328947496,1718025049436,-500.0,0.00022083,2]
[328947497,1718025049446,-867.75,0.00022085,2]
[328947498,1718025049456,-1600.43,0.00022085,2]
[328947499,1718025049466,-917.7,0.00022085,2]
[328947500,1718025049475,-712.57,0.00022085,2]
[328947501,1718025049485,-500.0,0.00022085,2]
[328947502,1718025049495,-914.39,0.00022085,2]
[328947503,1718025049505,-500.0,0.00022085,2]
[328947504,1718025049515,-500.0,0.00022085,2]
[328947505,1718025049524,-500.0,0.00022085,2]
[328947506,1718025049535,-559.18,0.00022085,2]
[328947507,1718025049544,-771.31,0.00022085,2]
[328947508,1718025049554,-1360.27,0.00022085,2]
[328947509,1718025049564,-2043.67,0.00022085,2]
[328947510,1718025049573,-962.4,0.00022085,2]
[328947511,1718025049584,-500.0,0.00022085,2]
[328947512,1718025049595,-500.0,0.00022085,2]
[328947513,1718025049604,-2294.87,0.00022085,2]
[328947514,1718025049614,-722.1,0.00022085,2]
[328947515,1718025049625,-640.571761,0.00022085,2]
[328947516,1718025049635,-500.0,0.00022087,2]
[328947517,1718025049644,-520.41,0.00022087,2]
[328947518,1718025049654,-500.0,0.00022087,2]
[328947519,1718025049664,-200.0,0.00022087,2]
[328947520,1718025049673,-500.0,0.00022087,2]
[328947521,1718025049683,-556.01,0.00022087,2]
[328947522,1718025049692,-500.0,0.00022087,2]
[328947523,1718025049702,-500.0,0.00022087,2]
[328947524,1718025049711,-542.45,0.00022087,2]
[328947525,1718025049721,-500.0,0.00022087,2]
[328947526,1718025049731,-937.86,0.00022087,2]
[328947527,1718025049741,-500.0,0.00022087,2]
[328947528,1718025049750,-652.98,0.00022087,2]
[328947529,1718025049760,-826.99,0.00022087,2]
[328947530,1718025049770,-500.0,0.00022087,2]
[328947531,1718025049780,-500.0,0.00022087,2]
[328947532,1718025049790,-1276.79,0.00022087,2]
[328947533,1718025049800,-596.13,0.00022087,2]
[328947534,1718025049809,-500.0,0.00022087,2]
[328947535,1718025049819,-500.0,0.00022087,2]
[328947536,1718025049828,-500.0,0.00022087,2]
[328947537,1718025049838,-500.0,0.00022087,2]
[328947538,1718025049848,-1256.86,0.00022087,2]
[328947539,1718025049858,-500.0,0.00022087,2]
[328947540,1718025049867,-500.0,0.00022087,2]
[328947541,1718025049877,-1506.86,0.00022087,2]
[328947542,1718025049887,-500.0,0.00022087,2]
[328947543,1718025049897,-500.0,0.00022087,2]
[328947544,1718025049907,-500.0,0.00022087,2]
[328947545,1718025049917,-1081.24,0.00022087,2]
[328947546,1718025049927,-500.0,0.00022087,2]
[328947547,1718025049936,-500.0,0.00022087,2]
[328947548,1718025049946,-778.16,0.00022087,2]
[328947549,1718025049956,-861.76,0.00022087,2]
[328947550,1718025050036,-578.34,0.00022087,2]
[328947551,1718025050046,-500.0,0.00022087,2]
[328947552,1718025050056,-500.0,0.00022087,2]
[328947553,1718025050066,-500.0,0.00022087,2]
[328947554,1718025050075,-500.0,0.00022087,2]
[328947555,1718025050085,-500.0,0.00022087,2]
[328947556,1718025050096,-1906.18,0.00022087,2]
[328947557,1718025050106,-538.62,0.00022087,2]
[328947558,1718025050116,-500.0,0.00022087,2]
[328947559,1718025050125,-500.0,0.00022087,2]
[328947560,1718025050135,-408.02463795,0.00022087,2]
[328947561,1718025050144,-500.0,0.00022087,2]
[328947562,1718025050154,-588.47,0.00022087,2]
[328947563,1718025050164,-406.67861161,0.00022087,2]
[328947564,1718025050174,-530.43445442,0.00022087,2]
[328947565,1718025050185,-1419.7,0.00022087,2]
[328947566,1718025050194,-2539.43,0.00022087,2]
[328947567,1718025050204,-500.0,0.00022087,2]
[328947568,1718025050214,-519.59,0.00022087,2]
[328947569,1718025050224,-500.0,0.00022087,2]
[328947570,1718025050234,-517.07,0.00022088,2]